bitfinex/quotes_ETHUSD_20240921
["timestamp","ask_amount","ask_price","bid_price","bid_amount"]
[1726951017062,0.8147559,2571.5,2571.4,0.12987045]
[1726951017432,0.8147559,2571.6,2571.3,3.4153]
[1726951017636,0.8147559,2571.5,2571.3,3.4153]
[1726951018687,0.8147559,2571.6,2571.3,3.4153]
[1726951018862,0.55,2571.5,2571.3,3.4153]
[1726951021656,0.8147559,2571.6,2571.3,3.4153]
[1726951023419,0.8147559,2571.5,2571.3,3.4153]
[1726951024215,0.8147559,2571.6,2571.3,3.4153]
[1726951031625,0.55,2571.6,2571.3,3.4153]
[1726951031790,1.58636104,2571.6,2571.3,3.4153]
[1726951032330,2.40111694,2571.6,2571.3,3.4153]
[1726951034092,1.58636104,2571.6,2571.3,3.4153]
[1726951034292,2.40111694,2571.6,2571.3,3.4153]
[1726951035834,6.28975694,2571.6,2571.3,3.4153]
[1726951036005,2.40111694,2571.6,2571.3,3.4153]
[1726951037022,1.58636104,2571.6,2571.3,3.4153]
[1726951037220,0.55,2571.6,2571.3,3.4153]
[1726951039331,1.3647559,2571.6,2571.3,3.4153]
[1726951039540,0.55,2571.6,2571.3,3.4153]
[1726951040030,1.3647559,2571.6,2571.3,3.4153]
[1726951040603,0.55,2571.6,2571.3,3.4153]
[1726951042335,1.59313205,2571.6,2571.3,3.4153]
[1726951043400,0.55,2571.4,2571.3,1.0]
[1726951043717,1.3647559,2571.4,2571.3,1.0]
[1726951046538,1.3647559,2571.4,2571.2,2.3013]
[1726951046901,1.3647559,2571.4,2571.3,0.12307772]
[1726951047242,1.3647559,2571.4,2571.2,2.3013]
[1726951047739,1.3647559,2571.4,2571.3,0.12307772]
[1726951048111,1.3647559,2571.4,2571.2,2.3013]
[1726951048638,1.3647559,2571.4,2571.3,0.12307772]
[1726951049141,1.3647559,2571.4,2571.2,2.3013]
[1726951049552,1.3647559,2571.4,2571.3,0.12307772]
[1726951049900,1.3647559,2571.4,2571.2,2.3013]
[1726951050311,1.3647559,2571.4,2571.3,0.12307772]
[1726951050517,1.3647559,2571.4,2571.2,2.3013]
[1726951050837,1.3647559,2571.4,2571.3,0.12307772]
[1726951051343,1.3647559,2571.4,2571.2,2.3013]
[1726951051641,1.3647559,2571.4,2571.3,0.12307772]
[1726951052015,1.3647559,2571.4,2571.2,2.3013]
[1726951052217,1.3647559,2571.4,2571.3,0.12307772]
[1726951052463,1.3647559,2571.4,2571.2,2.3013]
[1726951052806,1.3647559,2571.4,2571.3,0.12307772]
[1726951053006,1.3647559,2571.4,2571.2,2.3013]
[1726951053206,1.3647559,2571.4,2571.3,0.12307772]
[1726951053539,1.22203452,2571.5,2571.2,2.3013]
[1726951053540,0.8147559,2571.5,2571.2,2.3013]
[1726951053745,0.8147559,2571.6,2571.2,2.3013]
[1726951054199,0.8147559,2571.5,2571.2,2.3013]
[1726951054815,0.8147559,2571.6,2571.2,2.3013]
[1726951055031,1.3647559,2571.6,2571.5,0.5]
[1726951055343,2.40401989,2571.6,2571.5,0.5]
[1726951055842,2.81129851,2571.6,2571.5,0.5]
[1726951056898,1.58926399,2571.6,2571.5,0.5]
[1726951057104,2.81129851,2571.6,2571.5,0.5]
[1726951059230,2.81129851,2571.6,2571.5,1.0]
[1726951060447,1.58926399,2571.6,2571.5,1.0]
[1726951060825,2.81217651,2571.6,2571.5,1.0]
[1726951061139,3.2185335,2571.6,2571.5,1.0]
[1726951061836,0.55,2571.6,2571.5,1.0]
[1726951062052,1.77327029,2571.6,2571.5,3.3013]
[1726951062200,2.17926951,2571.6,2571.5,3.3013]
[1726951063214,0.55,2571.6,2571.5,3.8013]
[1726951063542,2.17926951,2571.6,2571.5,3.8013]
[1726951063851,2.17926951,2571.6,2571.5,1.5]
[1726951064212,3.21879042,2571.6,2571.5,1.5]
[1726951067556,2.17926951,2571.6,2571.5,1.5]
[1726951077819,6.06788951,2571.6,2571.5,1.5]
[1726951078024,6.91232,2571.6,2571.5,1.5]
[1726951078730,8.95185606,2571.6,2571.5,1.5]
[1726951079236,6.91232,2571.6,2571.5,1.5]
[1726951079436,8.95196194,2571.6,2571.5,1.5]
[1726951079645,10.40924746,2571.6,2571.5,1.5]
[1726951080653,8.36960552,2571.6,2571.5,1.5]
[1726951080839,3.63884026,2571.6,2571.5,1.5]
[1726951081158,5.89590552,2571.6,2571.5,1.5]
[1726951081861,7.52748294,2571.6,2571.5,1.5]
[1726951082350,5.89590552,2571.6,2571.5,1.5]
[1726951083393,7.5275207,2571.6,2571.5,1.5]
[1726951083869,5.89590552,2571.6,2571.5,1.5]
[1726951088219,7.52771564,2571.6,2571.5,1.5]
[1726951088425,5.89590552,2571.6,2571.5,1.5]
[1726951091521,7.93543547,2571.6,2571.5,1.5]
[1726951091999,5.89590552,2571.6,2571.5,1.5]
[1726951092329,7.93543547,2571.6,2571.5,1.5]
[1726951092799,5.89590552,2571.6,2571.5,1.5]
[1726951093424,7.93561706,2571.6,2571.5,1.5]
[1726951093822,4.04699706,2571.6,2571.5,1.5]
[1726951094039,2.58971154,2571.6,2571.5,1.5]
[1726951095223,0.55,2571.6,2571.5,1.5]
[1726951095536,2.58971154,2571.6,2571.5,1.5]
[1726951102731,2.18255175,2571.6,2571.5,3.8772]
[1726951105700,1.63255175,2571.6,2571.5,3.8772]
[1726951105900,0.816271,2571.6,2571.5,4.20212]
[1726951106337,0.816271,2571.7,2571.5,4.32478754]
[1726951106542,0.816271,2571.7,2571.6,2.3144]
[1726951106743,0.816271,2571.7,2571.6,2.436902]
[1726951107046,0.816271,2571.7,2571.6,2.3144]
[1726951108706,0.816271,2571.8,2571.6,2.3144]
[1726951114358,0.816271,2571.9,2571.6,2.3144]
[1726951114657,0.816271,2571.8,2571.6,2.3144]
[1726951116252,0.816271,2571.9,2571.6,2.3144]
[1726951117366,0.816271,2572.0,2571.7,0.12220851]
[1726951117611,0.816271,2572.0,2571.6,2.3144]
[1726951117864,0.816271,2571.9,2571.6,2.3144]
[1726951118267,0.816271,2571.9,2571.7,0.12220851]
[1726951118575,0.816271,2572.0,2571.5,1.0]
[1726951118869,0.816271,2572.0,2571.8,2.3144]
[1726951119028,0.816271,2572.1,2571.8,2.3144]
[1726951120594,1.366271,2572.1,2571.9,0.12204442]
[1726951120799,0.55,2572.1,2571.8,2.3144]
[1726951120995,0.55,2572.1,2572.0,0.12196794]
[1726951121155,0.55,2572.1,2571.8,2.3144]
[1726951121356,0.55,2572.1,2572.0,0.12196794]
[1726951121658,0.55,2572.1,2571.8,2.3144]
[1726951121971,0.55,2572.1,2571.9,0.12204442]
[1726951122283,0.55,2572.1,2571.8,2.3144]
[1726951122599,0.55,2572.1,2571.9,0.12204442]
[1726951122784,0.55,2572.1,2571.8,2.3144]
[1726951122971,0.55,2572.1,2572.0,0.12196794]
[1726951123173,1.366271,2572.1,2571.8,2.3144]
[1726951123372,0.55,2572.1,2572.0,0.12196794]
[1726951123555,0.55,2572.1,2571.8,2.3144]
[1726951123960,0.55,2572.1,2571.9,0.12204442]
[1726951124254,0.55,2572.1,2571.8,2.3144]
[1726951124675,0.816271,2572.3,2572.1,2.4347]
[1726951124900,0.816271,2572.6,2572.3,2.32726526]
[1726951125061,0.816271,2572.7,2572.4,1.66470296]
[1726951125405,3.279671,2572.9,2572.4,1.66470296]
[1726951125574,4.67062155,2572.9,2572.3,2.32726526]
[1726951126160,0.816271,2572.8,2572.3,2.32726526]
[1726951126358,5.07870328,2572.9,2572.3,2.32726526]
[1726951126359,4.67062155,2572.9,2572.3,2.32726526]
[1726951126805,8.55728155,2572.9,2572.3,2.32726526]
[1726951127105,0.816271,2572.8,2572.3,2.32726526]
[1726951127274,0.55,2572.8,2572.3,2.32726526]
[1726951127475,1.58316343,2572.8,2572.3,2.32726526]
[1726951127911,2.39943443,2572.8,2572.3,2.32726526]
[1726951128634,1.58316343,2572.8,2572.3,2.32726526]
[1726951135237,0.55,2572.8,2572.3,2.32726526]
[1726951153007,1.366271,2572.8,2572.3,2.32726526]
[1726951155927,5.253101,2572.8,2572.3,2.32726526]
[1726951156269,1.366271,2572.8,2572.3,2.32726526]
[1726951156485,0.55,2572.8,2572.3,2.32726526]
[1726951156918,1.366271,2572.8,2572.3,2.32726526]
[1726951157083,2.15309443,2572.8,2572.3,2.32726526]
[1726951159441,0.55,2572.6,2572.3,2.32726526]
[1726951160240,1.366271,2572.7,2572.4,0.12124778]
[1726951160393,1.366271,2572.7,2572.3,2.32726526]
[1726951160394,0.55,2572.7,2572.3,2.32726526]
[1726951160600,1.366271,2572.7,2572.3,2.32726526]
[1726951160797,0.55,2572.7,2572.3,2.32726526]
[1726951161198,1.366271,2572.7,2572.3,2.32726526]
[1726951162834,1.366271,2572.7,2572.5,2.4309]
[1726951163332,1.366271,2572.7,2572.6,0.1210949]
[1726951163511,2.39503195,2572.7,2572.6,0.1210949]
[1726951164411,1.57876095,2572.7,2572.6,0.1210949]
[1726951164737,2.39387409,2572.7,2572.6,0.1210949]
[1726951165234,1.57876095,2572.7,2572.6,0.1210949]
[1726951165456,2.80311368,2572.7,2572.5,2.4309]
[1726951165629,1.3652468,2572.6,2572.5,2.4309]
[1726951167856,0.55,2572.6,2572.5,2.4309]
[1726951168157,1.36556367,2572.6,2572.5,2.4309]
[1726951168322,0.55,2572.6,2572.5,2.4309]
[1726951168857,1.77435273,2572.6,2572.5,2.4309]
[1726951170365,2.18255175,2572.6,2572.5,2.4309]
[1726951171123,0.55,2572.6,2572.5,2.4309]
[1726951171353,2.18255175,2572.6,2572.5,2.4309]
[1726951171558,0.55,2572.6,2572.5,2.4309]
[1726951171764,2.18255175,2572.6,2572.5,2.4309]
[1726951173001,1.77498383,2572.6,2572.5,2.4309]
[1726951173209,2.18255175,2572.6,2572.5,2.4309]
[1726951173581,0.55,2572.6,2572.5,2.4309]
[1726951174568,2.18255175,2572.6,2572.5,2.4309]
[1726951175867,1.774983,2572.6,2572.5,2.4309]
[1726951176113,2.18255175,2572.6,2572.5,2.4309]
[1726951176309,0.55,2572.6,2572.5,2.4309]
[1726951176493,1.77505486,2572.6,2572.5,2.4309]
[1726951176715,0.55,2572.6,2572.5,2.4309]
[1726951177023,2.18255175,2572.6,2572.5,2.4309]
[1726951180507,2.18255175,2572.6,2572.5,2.9309]
[1726951181029,0.55,2572.6,2572.5,2.9309]
[1726951181228,0.55,2572.6,2572.5,3.05173634]
[1726951181529,2.18255175,2572.6,2572.5,3.05173634]
[1726951181893,2.18255175,2572.6,2572.5,2.9309]
[1726951184019,0.55,2572.6,2572.5,2.9309]
[1726951184228,2.18255175,2572.6,2572.5,3.05173634]
[1726951184590,2.18255175,2572.6,2572.5,3.4309]
[1726951184928,0.55,2572.6,2572.5,3.55170577]
[1726951185918,2.18255175,2572.6,2572.5,3.55170577]
[1726951187194,0.55,2572.6,2572.5,3.55170577]
[1726951187394,1.77502432,2572.6,2572.5,3.55170577]
[1726951187998,0.55,2572.6,2572.5,3.55170577]
[1726951188425,2.18255175,2572.6,2572.5,3.55170577]
[1726951188807,2.18255175,2572.6,2572.5,4.05170577]
[1726951189536,0.55,2572.6,2572.5,4.05170577]
[1726951189696,1.77518909,2572.6,2572.5,4.05170577]
[1726951190034,1.77517596,2572.6,2572.5,4.05170577]
[1726951190441,0.55,2572.6,2572.5,4.05170577]
[1726951190732,1.77516484,2572.6,2572.5,4.05170577]
[1726951191040,2.18255175,2572.6,2572.5,4.05170577]
[1726951192235,1.77516779,2572.6,2572.5,4.05170577]
[1726951193060,1.77516802,2572.6,2572.5,4.55170577]
[1726951193373,0.55,2572.6,2572.5,4.55170577]
[1726951195165,1.77518992,2572.6,2572.5,4.55170577]
[1726951195398,0.55,2572.6,2572.5,4.55170577]
[1726951195972,1.77517433,2572.6,2572.5,4.55170577]
[1726951196123,1.77517467,2572.6,2572.5,4.55170577]
[1726951196420,0.55,2572.6,2572.5,4.55170577]
[1726951197042,0.55,2572.6,2572.5,5.05170577]
[1726951197273,2.18255175,2572.6,2572.5,5.05170577]
[1726951200187,0.55,2572.6,2572.5,5.05170577]
[1726951200352,1.77516185,2572.6,2572.5,5.05170577]
[1726951200683,1.77516149,2572.6,2572.5,5.05170577]
[1726951201782,2.18255175,2572.6,2572.5,5.05170577]
[1726951202161,0.55,2572.6,2572.5,5.05170577]
[1726951202485,2.18255175,2572.6,2572.5,5.05170577]
[1726951202846,0.55,2572.6,2572.5,5.05170577]
[1726951204255,2.18255175,2572.6,2572.5,5.05170577]
[1726951205681,1.77517644,2572.6,2572.5,5.05170577]
[1726951205902,0.55,2572.6,2572.5,5.05170577]
[1726951207149,1.77516745,2572.6,2572.5,5.05170577]
[1726951207947,2.18255175,2572.6,2572.5,5.05170577]
[1726951208846,0.55,2572.6,2572.5,5.05170577]
[1726951209073,1.63255175,2572.7,2572.5,5.05170577]
[1726951209262,0.81672294,2572.6,2572.5,5.05170577]
[1726951211605,0.81672294,2572.7,2572.5,5.05170577]
[1726951212386,0.81672294,2572.8,2572.6,1.66470296]
[1726951212587,0.81672294,2572.9,2572.7,2.47962769]
[1726951212796,0.81672294,2573.0,2572.7,2.5224973]
[1726951213093,0.81672294,2572.9,2572.7,2.5224973]
[1726951213303,0.81672294,2572.8,2572.7,2.4019]
[1726951213594,0.81672294,2572.9,2572.8,0.12045418]
[1726951213798,1.22518031,2573.0,2572.7,2.52243061]
[1726951213962,1.22518031,2572.9,2572.8,0.12045418]
[1726951214170,1.22518031,2572.9,2572.7,2.4019]
[1726951214357,1.22518031,2572.9,2572.8,0.12045418]
[1726951214553,1.22518031,2572.9,2572.7,2.4019]
[1726951214794,0.81589098,2572.8,2572.7,2.4019]
[1726951215298,1.22518031,2572.9,2572.7,2.4019]
[1726951215479,0.81588831,2572.8,2572.7,2.4019]
[1726951216400,1.22518031,2572.9,2572.7,2.4019]
[1726951216564,0.81581075,2572.8,2572.7,2.4019]
[1726951221097,0.36735428,2572.8,2572.5,2.5]
[1726951221296,0.81567992,2572.7,2572.5,2.5]
[1726951221502,1.22518031,2572.7,2572.5,2.5]
[1726951221717,9.82089327,2572.6,2572.5,2.5]
[1726951221919,11.98058208,2572.6,2572.5,2.5]
[1726951222079,9.94104806,2572.6,2572.5,2.5]
[1726951222383,11.9795189,2572.6,2572.5,2.5]
[1726951222587,6.42771782,2572.6,2572.5,2.5]
[1726951222789,6.02006066,2572.6,2572.5,2.5]
[1726951223475,9.90717066,2572.6,2572.5,2.5]
[1726951224475,9.90693487,2572.6,2572.5,2.5]
[1726951225485,5.61212772,2572.6,2572.5,2.5]
[1726951225808,4.26685039,2572.6,2572.5,2.5]
[1726951226815,8.56159977,2572.6,2572.5,2.5]
[1726951227519,6.93101,2572.6,2572.5,2.5]
[1726951229019,0.55,2572.6,2572.5,2.5]
[1726951230102,1.77264417,2572.6,2572.5,2.5]
[1726951230638,0.55,2572.6,2572.5,2.5]
[1726951231232,4.43711,2572.6,2572.5,2.5]
[1726951231440,5.26838624,2572.6,2572.5,2.5]
[1726951231734,6.49092665,2572.6,2572.5,2.5]
[1726951236744,2.60381665,2572.6,2572.5,2.5]
[1726951237108,1.77254041,2572.6,2572.5,2.5]
[1726951247157,1.77254041,2572.6,2572.1,2.3845]
[1726951247328,1.77254041,2572.6,2572.5,0.5]
[1726951247530,5.65965041,2572.6,2572.5,0.5]
[1726951251335,4.43711,2572.6,2572.5,0.5]
[1726951251553,6.08074706,2572.6,2572.5,1.0]
[1726951251927,7.30319866,2572.6,2572.5,1.0]
[1726951252860,7.71133683,2572.6,2572.5,1.0]
[1726951253163,6.08074706,2572.6,2572.5,1.0]
[1726951253465,7.30322928,2572.6,2572.5,1.0]
[1726951253623,5.65959222,2572.6,2572.5,1.0]
[1726951255519,1.77248222,2572.6,2572.5,1.5]
[1726951259742,1.77248222,2572.6,2572.5,2.0]
[1726951260442,0.55,2572.6,2572.5,2.0]
[1726951261385,2.18058977,2572.6,2572.5,2.0]
[1726951261860,1.77337252,2572.6,2572.5,2.0]
[1726951262233,0.55,2572.6,2572.5,2.0]
[1726951263024,2.18058977,2572.6,2572.5,2.0]
[1726951263950,2.18058977,2572.6,2572.5,2.5]
[1726951266537,2.59107421,2572.6,2572.5,2.65889369]
[1726951266815,2.59107421,2572.6,2572.5,2.5]
[1726951270309,2.18340253,2572.6,2572.5,2.5]
[1726951270890,2.1834437,2572.6,2572.5,2.5]
[1726951271198,2.18343977,2572.6,2572.5,2.5]
[1726951276322,1.63343977,2572.6,2572.5,2.5]
[1726951281413,1.63320267,2572.6,2572.5,2.5]
[1726951281779,8.21078299,2572.7,2572.5,2.5]
[1726951281977,1.63321569,2572.6,2572.5,2.5]
[1726951282178,8.21078299,2572.7,2572.5,2.5]
[1726951282377,1.63321788,2572.6,2572.5,2.5]
[1726951282696,8.21078299,2572.7,2572.5,2.5]
[1726951282998,1.63323631,2572.6,2572.5,2.5]
[1726951283189,8.21078299,2572.7,2572.5,2.5]
[1726951283397,1.63322743,2572.6,2572.5,2.5]
[1726951283583,8.21078299,2572.7,2572.5,2.5]
[1726951283883,1.63319625,2572.6,2572.5,2.5]
[1726951284082,1.63323186,2572.6,2572.5,2.5]
[1726951285322,8.21078299,2572.7,2572.5,2.5]
[1726951285820,2.04149299,2572.6,2572.5,2.5]
[1726951286734,6.16929,2572.7,2572.5,2.5]
[1726951287017,8.21079297,2572.7,2572.5,2.65890482]
[1726951287585,2.04150297,2572.6,2572.5,2.65890482]
[1726951288023,1.63326138,2572.6,2572.5,2.65890482]
[1726951288395,1.63326138,2572.6,2572.5,2.5]
[1726951292349,8.21079297,2572.7,2572.5,2.5]
[1726951292515,1.63320511,2572.6,2572.5,2.5]
[1726951297265,5.9284977,2572.7,2572.5,2.5]
[1726951297438,1.63325506,2572.6,2572.5,2.5]
[1726951299171,5.9284977,2572.7,2572.5,2.5]
[1726951299344,1.63329594,2572.6,2572.5,2.5]
[1726951300145,2.0415077,2572.7,2572.5,2.5]
[1726951300462,1.63333157,2572.6,2572.5,2.5]
[1726951301477,2.0415077,2572.7,2572.5,2.5]
[1726951301686,1.63338384,2572.6,2572.5,4.9676]
[1726951301978,1.63338384,2572.6,2572.5,5.12651596]
[1726951305772,1.2249265,2572.6,2572.5,5.12651596]
[1726951305973,1.2249265,2572.6,2572.5,4.9676]
[1726951306172,1.63338384,2572.7,2572.5,5.12651596]
[1726951306479,1.22486431,2572.6,2572.5,5.12651596]
[1726951307651,1.63338384,2572.7,2572.5,5.12651596]
[1726951308067,1.22481557,2572.6,2572.5,5.12651596]
[1726951309841,1.22476659,2572.6,2572.5,5.12651596]
[1726951311484,1.63338384,2572.7,2572.5,5.12651596]
[1726951311655,1.22476759,2572.6,2572.5,5.12651596]
[1726951312676,1.22476759,2572.6,2572.5,2.65891596]
[1726951312873,0.72884304,2572.6,2572.5,2.65891596]
[1726951313074,5.70912204,2572.6,2572.5,2.65891596]
[1726951313446,3.66784304,2572.6,2572.5,2.5]
[1726951313685,5.70900206,2572.6,2572.5,2.5]
[1726951313892,5.70900206,2572.6,2571.9,2.2749]
[1726951314066,0.81645093,2572.2,2571.9,2.2749]
[1726951314262,0.81645093,2572.2,2572.0,0.15929489]
[1726951315304,0.81645093,2572.3,2572.1,2.4392]
[1726951315657,0.81645093,2572.3,2572.2,0.15913884]
[1726951315882,0.81645093,2572.3,2572.1,2.4392]
[1726951321700,0.81645093,2572.4,2572.1,2.4392]
[1726951322803,0.81645093,2572.3,2572.1,2.4392]
[1726951329706,0.81645093,2572.4,2572.1,2.4392]
[1726951330527,0.81645093,2572.3,2572.1,2.4392]
[1726951330927,0.81645093,2572.3,2572.2,0.488]
[1726951331631,0.81645093,2572.4,2572.2,0.488]
[1726951332125,0.81645093,2572.3,2572.2,0.488]
[1726951342984,0.81645093,2572.4,2572.2,0.488]
[1726951355481,0.81645093,2572.3,2572.2,0.488]
[1726951356123,0.81645093,2572.3,2572.2,0.64716388]
[1726951356920,3.4916764,2572.4,2572.2,0.64716388]
[1726951357132,0.81645654,2572.3,2572.2,0.64716388]
[1726951357427,1.81877988,2572.3,2572.2,0.64716388]
[1726951357643,4.49400535,2572.3,2572.2,0.64716388]
[1726951357927,4.90223087,2572.3,2572.2,0.64716388]
[1726951358136,4.90223087,2572.3,2572.2,0.488]
[1726951359528,2.86110348,2572.3,2572.2,0.488]
[1726951360032,4.49316582,2572.3,2572.2,0.488]
[1726951366030,2.86110348,2572.3,2572.2,0.488]
[1726951368051,4.0841858,2572.3,2572.2,0.488]
[1726951368211,2.86110348,2572.3,2572.2,0.488]
[1726951368413,4.08412907,2572.3,2572.2,0.488]
[1726951368931,2.86110348,2572.3,2572.2,0.488]
[1726951369246,4.08411937,2572.3,2572.2,0.488]
[1726951369844,8.93073582,2572.3,2572.2,0.488]
[1726951372262,5.04316582,2572.3,2572.2,0.488]
[1726951372420,3.41110348,2572.3,2572.2,0.488]
[1726951372625,5.04316582,2572.3,2572.2,0.488]
[1726951372933,3.41110348,2572.3,2572.2,0.488]
[1726951373323,5.04316582,2572.3,2572.2,0.488]
[1726951373525,3.41110348,2572.3,2572.2,0.48683259]
[1726951373726,8.93073582,2572.3,2572.2,0.48683259]
[1726951374338,7.29867348,2572.3,2572.2,0.48683259]
[1726951374523,8.93073582,2572.3,2572.2,0.48683259]
[1726951375249,8.92865821,2572.3,2572.2,0.48683259]
[1726951381077,8.92865821,2572.3,2571.6,2.3751]
[1726951381289,0.81473864,2572.0,2571.6,2.3751]
[1726951382380,0.81473864,2572.1,2571.6,2.7790803]
[1726951382782,0.81473864,2572.1,2571.8,2.3751]
[1726951383889,0.81473864,2572.2,2571.8,2.3751]
[1726951384042,0.81473864,2572.2,2571.7,2.3751]
[1726951384249,0.81473864,2572.2,2571.8,2.53279613]
[1726951384451,0.81473864,2572.2,2571.8,2.99294407]
[1726951385377,0.81473864,2572.2,2571.8,2.53279613]
[1726951387391,0.81473864,2572.1,2571.8,2.53279613]
[1726951390995,0.81473864,2572.2,2571.8,2.53279613]
[1726951391368,0.81473864,2572.1,2571.8,2.53279613]
[1726951393670,0.81473864,2572.1,2571.8,2.3751]
[1726951398807,0.81473864,2572.0,2571.8,2.3751]
[1726951399013,0.81473864,2572.1,2571.8,2.3751]
[1726951399699,0.81473864,2572.0,2571.8,2.3751]
[1726951399885,0.81473864,2572.1,2571.8,2.3751]
[1726951400305,0.81473864,2572.0,2571.8,2.3751]
[1726951403416,0.81473864,2571.9,2571.8,2.3751]
[1726951405016,1.22210797,2572.1,2571.8,2.3751]
[1726951405017,0.81473864,2572.0,2571.8,2.3751]
[1726951405224,0.81473864,2571.9,2571.8,2.3751]
[1726951409311,0.81473864,2572.0,2571.8,2.3751]
[1726951409519,0.81473864,2571.9,2571.8,2.3751]
[1726951412694,0.81473864,2572.0,2571.8,2.3751]
[1726951413185,0.81473864,2571.9,2571.8,2.3751]
[1726951414083,0.81473864,2572.0,2571.8,2.3751]
[1726951414500,0.81473864,2571.9,2571.8,2.3751]
[1726951415595,0.81473864,2572.0,2571.8,2.3751]
[1726951416920,0.81473864,2571.9,2571.8,2.3751]
[1726951417137,0.81473864,2572.0,2571.8,2.3751]
[1726951418840,0.81473864,2571.9,2571.8,2.3751]
[1726951419742,0.81473864,2572.0,2571.8,2.3751]
[1726951421609,0.81473864,2571.9,2571.8,2.3751]
[1726951421951,1.22210797,2572.1,2571.8,2.3751]
[1726951421952,0.81473864,2572.0,2571.8,2.3751]
[1726951427449,0.81473864,2571.9,2571.8,2.3751]
[1726951430059,0.81473864,2572.0,2571.8,2.3751]
[1726951430656,0.81473864,2571.9,2571.8,2.3751]
[1726951430965,0.81473864,2572.0,2571.8,2.3751]
[1726951431326,0.81473864,2571.9,2571.8,2.3751]
[1726951432164,0.81473864,2572.0,2571.8,4.37721296]
[1726951432366,0.81473864,2572.1,2571.9,2.475]
[1726951432663,0.81473864,2572.1,2571.9,2.63252912]
[1726951438563,0.81473864,2572.2,2571.9,2.63252912]
[1726951438943,0.81473864,2572.2,2571.9,2.475]
[1726951439658,0.81473864,2572.1,2571.9,2.475]
[1726951440473,0.81473864,2572.2,2571.9,2.475]
[1726951440677,0.81473864,2572.1,2571.9,2.475]
[1726951441149,0.81473864,2572.2,2572.0,0.15745108]
[1726951441552,0.81473864,2572.2,2571.9,2.475]
[1726951442179,0.81473864,2572.1,2571.9,2.475]
[1726951443974,0.81473864,2572.1,2572.0,0.37806145]
[1726951444191,1.42579263,2572.1,2572.0,0.37806145]
[1726951444348,1.42718283,2572.1,2572.0,0.37806145]
[1726951444687,0.20368466,2572.1,2572.0,0.37806145]
[1726951444855,1.83366939,2572.1,2572.0,0.37806145]
[1726951446441,1.83366939,2572.1,2572.0,0.37806631]
[1726951446637,4.32626939,2572.1,2572.0,0.37806631]
[1726951448592,4.32626939,2572.1,2571.9,0.5]
[1726951448744,4.32626939,2572.1,2572.0,0.37804302]
[1726951450396,2.69628466,2572.1,2572.0,0.37804302]
[1726951450562,8.76450969,2572.1,2572.0,0.37804302]
[1726951450925,6.93062,2572.0,2571.9,0.5]
[1726951451092,8.59532296,2572.0,2571.9,0.5]
[1726951451250,10.10855585,2572.0,2571.9,0.5]
[1726951451951,12.14552181,2572.0,2571.9,0.5]
[1726951452353,12.14552181,2572.0,2571.9,1.0]
[1726951453182,10.10855585,2572.0,2571.9,1.0]
[1726951453382,12.14552181,2572.0,2571.9,1.0]
[1726951453688,10.48081885,2572.0,2571.9,1.0]
[1726951453882,8.44385289,2572.0,2571.9,1.0]
[1726951454093,10.07245651,2572.0,2571.9,1.0]
[1726951456491,10.07245651,2572.0,2571.9,1.5]
[1726951459792,10.1401171,2572.0,2571.9,1.5]
[1726951463317,8.51151348,2572.0,2571.9,1.5]
[1726951464532,10.17621644,2572.0,2571.9,1.5]
[1726951465716,11.39660507,2572.0,2571.9,1.5]
[1726951465916,10.17621644,2572.0,2571.9,1.5]
[1726951467450,11.39648834,2572.0,2571.9,1.5]
[1726951467863,10.17621644,2572.0,2571.9,1.5]
[1726951468316,11.39641847,2572.0,2571.9,1.5]
[1726951475175,11.80482006,2572.0,2571.9,1.5]
[1726951475378,11.39633441,2572.0,2571.9,1.5]
[1726951478578,11.39646686,2572.0,2571.9,1.5]
[1726951479395,10.17621644,2572.0,2571.9,1.5]
[1726951479617,11.39646915,2572.0,2571.9,1.5]
[1726951481319,10.17621644,2572.0,2571.9,1.5]
[1726951482419,11.80482006,2572.0,2571.9,1.5]
[1726951487219,10.17621644,2572.0,2571.9,1.5]
[1726951490987,4.77496355,2572.0,2571.9,1.5]
[1726951491433,3.77496355,2572.0,2571.9,1.5]
[1726951491927,7.66298355,2572.0,2571.9,1.5]
[1726951492525,5.99828059,2572.0,2571.9,1.5]
[1726951495803,8.21298355,2572.0,2571.9,1.5]
[1726951496007,9.50436226,2572.0,2571.9,1.5]
[1726951502633,11.95090683,2572.0,2571.9,1.5]
[1726951503436,9.50436226,2572.0,2571.9,1.5]
[1726951505250,0.55,2571.4,2570.3,2.296]
[1726951505401,0.81524726,2570.9,2570.3,2.296]
[1726951505711,0.81524726,2570.8,2570.3,2.296]
[1726951506303,0.81524726,2570.9,2570.3,2.296]
[1726951506643,0.81524726,2570.9,2570.4,2.296]
[1726951506942,0.81524726,2571.0,2570.5,0.13800391]
[1726951507103,0.81524726,2571.0,2570.6,2.296]
[1726951507313,0.81524726,2571.0,2570.6,2.5685345]
[1726951508251,0.81524726,2571.1,2570.6,2.5685345]
[1726951510258,4.70454726,2571.2,2570.6,2.5685345]
[1726951513227,3.8893,2571.2,2570.6,2.5685345]
[1726951513957,4.70454726,2571.2,2570.6,2.5685345]
[1726951514127,3.8893,2571.2,2570.6,2.5685345]
[1726951518676,3.8895,2571.1,2570.6,2.296]
[1726951523680,3.88955,2571.0,2570.6,2.296]
[1726951524285,3.88955,2571.0,2570.7,0.13828716]
[1726951526483,4.70479726,2571.0,2570.7,0.13828716]
[1726951526688,3.88955,2571.0,2570.7,0.13828716]
[1726951527193,0.81524726,2571.0,2570.7,0.13828716]
[1726951527499,0.81524726,2571.0,2570.8,2.4005]
[1726951529386,0.81524726,2570.9,2570.8,2.4005]
[1726951529922,0.81524726,2571.0,2570.8,2.4005]
[1726951530493,0.81524726,2570.9,2570.8,2.4005]
[1726951530671,0.81524726,2571.0,2570.8,2.4005]
[1726951530861,0.81524726,2570.9,2570.8,2.4005]
[1726951532795,1.22287089,2571.0,2570.8,2.4005]
[1726951532971,0.81398942,2570.9,2570.8,2.4005]
[1726951533172,1.22287089,2571.0,2570.8,2.4005]